[Event "4th Tata Steel India Blitz Women 2022"]
[Site "Kolkota"]
[Date "2022.12.04"]
[Round "11.2"]
[White "Muzychuk, Mariya"]
[Black "Muzychuk, Anna"]
[Result "1/2-1/2"]
[ECO "C55"]
[WhiteElo "2528"]
[BlackElo "2525"]
[Annotator "TA"]
[PlyCount "31"]
[EventDate "2022.11.29"]
[EventType "tourn"]
[EventCountry "IND"]
[SourceTitle "playchess.com"]
[Source "ChessBase"]
[SourceQuality "1"]
[TimeControl "180+2"]

{[%evp 13,31,37,29,34,29,39,29,26,37,18,15,9,4,7,76,5,22,30,28,18]} 1. e4 e5 2. Nf3 {[%emt 0:00:01]} Nc6 {[%emt 0:00:01]} 3. Bc4 {[%emt 0:00:01]} Nf6 {[%emt 0:00:02]} 4. d3 {[%emt 0:00:01]} Be7 {[%emt 0:00:02]} 5. O-O {[%emt 0:00:01]} O-O {[%emt 0:00:03]} 6. Re1 {[%emt 0:00:03]} d6 {[%emt 0:00:03]} 7. a4 {[%emt 0:00:01]} Na5 {[%emt 0:00:05] 7...h6 is the recent fashion.} 8. Ba2 {[%emt 0:00:01] C55: Two Knights: 4 d3, 4 d4 exd4 5 e5 and Max Lange Attack.} c5 {[%emt 0:00:00]} 9. c3 {[%emt 0:00:01]} Nc6 {[%emt 0:00:05]} 10. h3 {[%emt 0:00:14]} h6 {[%emt 0:00:06]} 11. Nbd2 {[%emt 0:00:16][%cal Bb1d2,Bd2f1,Bf1e3,Be3f5][%mdl 32]} a6 {[%emt 0:00:10]} 12. Nf1 {[%emt 0:00:17]} Be6 {[%emt 0:00:13]} 13. Ne3 {[%emt 0:00:07]} b5 {[%emt 0:00:35] [#]} (13... Bxa2 $11 {remains equal.} 14. Rxa2 Re8) 14. Bd2 {[%emt 0:00:08] [#]} (14. Bxe6 $1 $16 fxe6 15. axb5 axb5 16. Rxa8 Qxa8 17. Qb3) 14... Bxa2 $146 {[%emt 0:00:37]} ({Predecessor:} 14... b4 15. Nd5 bxc3 16. bxc3 Rb8 17. Bc4 Bxd5 18. exd5 Na5 19. Bxa6 Nxd5 20. Bb5 Qc7 {1-0 (75) Demchenko,A (2641)-Postny,E (2600) Chess.com INT 2020}) 15. Rxa2 {[%emt 0:00:01]} Qd7 {[%emt 0:00:00]} 16. Nf5 {[%emt 0:00:18] Weighted Error Value: White=0.18 (very precise) /Black=0.14 (very precise)} 1/2-1/2

[Event "4th Tata Steel India Blitz Women 2022"]
[Site "Kolkota"]
[Date "2022.12.04"]
[Round "11.3"]
[White "Savitha Shri B"]
[Black "Kulkarni Bhakti"]
[Result "1-0"]
[ECO "C41"]
[WhiteElo "2411"]
[BlackElo "2359"]
[Annotator "TA"]
[PlyCount "81"]
[EventDate "2022.11.29"]
[EventType "tourn"]
[EventCountry "IND"]
[SourceTitle "playchess.com"]
[Source "ChessBase"]
[SourceQuality "1"]
[TimeControl "180+2"]

{[%evp 13,80,-31,-20,-40,-43,-85,-102,-102,-80,-112,-81,-158,-121,-165,-146,-167,-169,-242,-229,-221,-234,-238,-108,-144,-154,-166,-96,-157,-118,-333,-339,-403,-366,-569,-529,-939,-623,-1054,-944,-1043,-435,-428,-247,-246,0,0,0,0,-9,-22,0,0,0,0,621,0,0,0,30,35,116,152,1087,1096,1170,1147,29998,29999,29999]} 1. e4 {[%emt 0:00:01]} d6 {[%emt 0:00:01]} 2. d4 {[%emt 0:00:02]} Nf6 {[%emt 0:00:01]} 3. Nc3 {[%emt 0:00:01]} e5 {[%emt 0:00:03]} 4. Nf3 {[%emt 0:00:01]} Nbd7 {[%emt 0:00:01]} 5. Bg5 {[%emt 0:00:22]} Be7 {[%emt 0:00:13]} 6. Qd2 {[%emt 0:00:10]} O-O {[%emt 0:00:10]} 7. O-O-O {[%emt 0:00:09]} c6 {[%emt 0:00:18]} 8. dxe5 {[%emt 0:00:33] C41: Philidor Defence.} dxe5 {[%emt 0:00:22]} 9. h4 {[%emt 0:00:31]} Qc7 {[%emt 0:00:16] [#]} 10. Qe1 $146 {[%emt 0:00:14] Black is better.} ({Predecessor:} 10. Ne1 Nc5 11. f3 Rd8 12. Qf2 Rxd1+ 13. Nxd1 Qa5 14. a3 Be6 15. Bd2 Qc7 16. g4 Nfxe4 17. fxe4 Nxe4 {1-0 (22) Medveski,M (1842)-Meijer,W (1912) IECG email 2001}) 10... Bb4 {[%emt 0:00:24]} 11. Bd3 {[%emt 0:00:12]} Re8 {[%emt 0:00:05]} 12. h5 {[%emt 0:00:04]} (12. a3 $142 Be7 13. Nd2) 12... h6 $17 {[%emt 0:00:10]} 13. Be3 {[%emt 0:00:02]} Nc5 {[%emt 0:00:07][%cal Oc5e4]} 14. Bxc5 {[%emt 0:00:38]} Bxc5 {[%emt 0:00:01]} 15. Na4 {[%emt 0:00:05]} (15. Nh4 {was called for.}) 15... Bf8 $19 {[%emt 0:00:10]} 16. Nc3 {[%emt 0:00:08]} b5 {[%emt 0:00:01]} 17. Nh4 {[%emt 0:00:02]} Bb4 {[%emt 0:00:12]} (17... Nxh5 18. Nf5 Nf4 19. Kb1) (17... a5 $19 {is more deadly.} 18. f3 a4) 18. f3 {[%emt 0:00:06][%cal Oc3b5]} Be6 {[%emt 0:00:04]} (18... Nxh5 19. Bxb5 Be6 20. Bd3 $17) 19. g4 {[%emt 0:00:02]} Nh7 {[%emt 0:00:08]} ({Better is} 19... Ba5 $19 {White must now prevent ...b4.} 20. Kb1 Rad8) 20. Nf5 {[%emt 0:00:03]} (20. Nd5 $142 cxd5 21. Qxb4) 20... Bxa2 {[%emt 0:00:04]} 21. Qe3 $2 {[%emt 0:00:06] Against a5} (21. Nd5 $17 Bxd5 22. Qxb4) 21... Be6 {[%emt 0:00:26]} 22. Rhg1 {[%emt 0:00:07]} Ng5 {[%emt 0:00:05]} 23. Be2 {[%emt 0:00:03]} (23. Rgf1 $142) 23... Qa5 {[%emt 0:00:03]} 24. Rd3 {[%emt 0:00:03]} Bc4 {[%emt 0:00:11] [#] And now ...Qa1+ would win.} 25. Rd7 {[%emt 0:00:02]} Bxe2 {[%emt 0:00:03]} 26. Qxe2 {[%emt 0:00:02]} Qa1+ {[%emt 0:00:01]} (26... Bxc3 $142 27. bxc3 Qa1+ 28. Kd2 Qxg1) 27. Nb1 {[%emt 0:00:01]} Rad8 {[%emt 0:00:06]} (27... a5 $142 28. c3 Bf8) 28. Rgd1 {[%emt 0:00:00]} Ne6 {[%emt 0:00:05]} (28... Rxd7 $19 29. Rxd7 a5) 29. Rxd8 $1 $11 {[%emt 0:00:02] Chess con chili.} Rxd8 {[%emt 0:00:01]} 30. Rxd8+ Nxd8 {[%emt 0:00:01]} 31. Qd3 {[%emt 0:00:01]} Ne6 {[%emt 0:00:06] [#] Hoping for ...Nf4.} 32. Qd7 {[%emt 0:00:02]} Qa6 {[%emt 0:00:02]} 33. Qe8+ {[%emt 0:00:01]} Nf8 $2 {[%emt 0:00:02][%mdl 8192]} (33... Bf8 $11) 34. Qxe5 $2 {[%emt 0:00:04]} ({Only move:} 34. c3 $18 Bc5 35. b4 (35. Qxe5 Ne6 $11)) 34... Ne6 {[%emt 0:00:01]} 35. Qb8+ {[%emt 0:00:01]} Kh7 {[%emt 0:00:01]} (35... Bf8 $5 {[%cal Rb5b4]}) 36. Qe8 {[%emt 0:00:03][%cal Oc2c3] Threatens to win with c3!} Bc5 {[%emt 0:00:02] Against c3} ({Less strong is} 36... Qb6 37. c3 $16) (36... Qb7 $1 $14) 37. Qxf7 $40 {[%emt 0:00:02][%mdl 128] White is out for blood. White has more active pieces.} Qa5 $2 {[%emt 0:00:01]} (37... b4 $16 38. Qg6+ (38. Qxe6 Qf1+ 39. Kd2 Qf2+ 40. Kd3 Qf1+ 41. Kd2 Qf2+ 42. Kd3 Qf1+ 43. Kd2 $11) 38... Kh8) 38. c3 $18 {[%emt 0:00:04]} (38. Qxe6 $2 Qe1#) 38... b4 {[%emt 0:00:03]} 39. Qxe6 {[%emt 0:00:01] Intending Qg6+ and mate.} bxc3 {[%emt 0:00:01]} 40. Qg6+ {[%emt 0:00:01]} Kg8 {[%emt 0:00:01]} 41. Qxg7# {[%emt 0:00:01] White used his chance.   Weighted Error Value: White=0.82/Black=0.98} 1-0

[Event "4th Tata Steel India Blitz Women 2022"]
[Site "Kolkota"]
[Date "2022.12.04"]
[Round "11.4"]
[White "Vaishali, Rameshbabu"]
[Black "Dzagnidze, Nana"]
[Result "1-0"]
[ECO "A11"]
[WhiteElo "2454"]
[BlackElo "2517"]
[Annotator "TA"]
[PlyCount "147"]
[EventDate "2022.11.29"]
[EventType "tourn"]
[EventCountry "IND"]
[SourceTitle "playchess.com"]
[Source "ChessBase"]
[SourceQuality "1"]
[TimeControl "180+2"]

{[%evp 11,146,8,9,0,-7,-5,0,0,0,0,0,0,0,0,0,0,11,0,43,47,31,41,49,31,33,19,34,13,56,53,70,50,65,83,55,0,40,40,44,32,50,21,105,18,18,25,48,55,57,9,4,0,0,0,0,-40,0,0,0,-1,0,-6,-6,-22,-5,-16,0,0,0,0,43,29,39,0,0,0,8,0,0,-12,-12,-12,0,-8,-8,-56,0,0,0,0,0,0,0,0,1,0,0,0,117,0,174,161,158,0,72,0,55,55,63,0,0,0,56,59,57,0,678,0,0,0,0,0,12,12,14,14,16,27,312,312,212,253,29989,29990,29992,29993,29999]} 1. Nf3 {[%emt 0:00:03]} Nf6 {[%emt 0:00:02]} 2. g3 {[%emt 0:00:02]} d5 {[%emt 0:00:10]} 3. Bg2 {[%emt 0:00:01]} c6 {[%emt 0:00:02]} 4. O-O {[%emt 0:00:03]} Bg4 {[%emt 0:00:08]} 5. c4 {[%emt 0:00:04]} e6 {[%emt 0:00:04]} 6. d3 {[%emt 0:00:10]} Nbd7 {[%emt 0:00:08] 6...Nbd7 has become a bit dusty these days.} 7. Qb3 {[%emt 0:00:14] A11: English Opening: 1...c6.} Qb6 {[%emt 0:00:26]} 8. Be3 {[%emt 0:00:12]} Qxb3 {[%emt 0:00:07]} 9. axb3 {[%emt 0:00:02] The position is equal.} a6 {[%emt 0:00:08]} 10. h3 {[%emt 0:00:32]} Bh5 {[%emt 0:00:07] [#]} 11. g4 $146 {[%emt 0:00:00]} ({Predecessor:} 11. Bd2 Bd6 12. Bc3 O-O 13. g4 Bg6 14. Nh4 Rfe8 15. Nd2 Rac8 16. b4 dxc4 17. dxc4 {½-½ (76) Perez Bolanos,J (2062)-Rodriguez Bittar,K (1881) Santa Cruz de La Palma 2022}) 11... Bg6 {[%emt 0:00:01]} 12. Nh4 {[%emt 0:00:00]} Be7 {[%emt 0:00:18][%cal Of6g4]} 13. Nxg6 {[%emt 0:00:43]} hxg6 {[%emt 0:00:02]} 14. f4 {[%emt 0:00:06]} Bc5 {[%emt 0:00:17]} 15. Bxc5 {[%emt 0:00:09]} Nxc5 {[%emt 0:00:01]} 16. Nd2 {[%emt 0:00:09]} Ke7 {[%emt 0:00:10]} 17. b4 {[%emt 0:00:09]} Ncd7 {[%emt 0:00:02][%cal Bc5d7,Bd7b6,Bb6c8,Bc8d6][%mdl 32]} 18. Nb3 {[%emt 0:00:19]} Rac8 {[%emt 0:00:11]} 19. Rfc1 {[%emt 0:00:33]} Nb6 {[%emt 0:00:29]} 20. Kf2 {[%emt 0:00:03]} Rhd8 {[%emt 0:00:09]} 21. Rc2 {[%emt 0:00:01]} dxc4 {[%emt 0:00:12]} 22. dxc4 {[%emt 0:00:01]} Rc7 {[%emt 0:00:04]} 23. Nc5 {[%emt 0:00:06]} (23. e3 $14) 23... Nc8 {[%emt 0:00:02]} (23... Rd4 $5 {[%cal Rd4f4]} 24. b3 Rxf4+ 25. Ke3 e5 $11) 24. e3 {[%emt 0:00:03]} Nd7 {[%emt 0:00:08]} 25. Nb3 {[%emt 0:00:01]} Nd6 {[%emt 0:00:09]} 26. Ke2 {[%emt 0:00:02]} Nf6 {[%emt 0:00:09]} (26... f6 $11) 27. Nc5 {[%emt 0:00:02]} (27. Rd1 $16) 27... Nd7 $11 {[%emt 0:00:01]} 28. Nd3 {[%emt 0:00:01]} c5 {[%emt 0:00:05]} 29. bxc5 {[%emt 0:00:04]} Nxc5 {[%emt 0:00:01]} 30. Nxc5 {[%emt 0:00:03]} (30. Ne5 $14) 30... Rxc5 {[%emt 0:00:00]} 31. Rac1 {[%emt 0:00:01]} a5 {[%emt 0:00:01]} 32. b3 {[%emt 0:00:02]} b6 {[%emt 0:00:01]} 33. Rd2 {[%emt 0:00:01]} f6 {[%emt 0:00:04]} (33... b5 $5 {[%cal Rb5c4]}) 34. Rcd1 {[%emt 0:00:02]} g5 {[%emt 0:00:02]} 35. Bf3 {[%emt 0:00:01]} Rcc8 {[%emt 0:00:04]} 36. Rd4 {[%emt 0:00:03]} Nf7 {[%emt 0:00:02]} 37. Bb7 {[%emt 0:00:03]} (37. Rxd8 {simplifies} Rxd8 38. Rxd8 Kxd8 39. Be4) 37... Rb8 {[%emt 0:00:02]} (37... Rxd4 {simplifies} 38. Rxd4 Rc5 39. fxg5 fxg5 40. Bg2 Rc8) 38. Bc6 {[%emt 0:00:01]} (38. Rxd8 {simplifies} Rxd8 39. Rxd8 Nxd8 40. Be4) 38... gxf4 {[%emt 0:00:02]} (38... Rxd4 {simplifies} 39. Rxd4 Nd6 40. Bg2 Rc8) 39. Rd7+ {[%emt 0:00:02]} (39. exf4 {simplifies} Rxd4 40. Rxd4 Nd6 41. Bg2) 39... Kf8 {[%emt 0:00:01]} 40. exf4 {[%emt 0:00:02]} Rbc8 {[%emt 0:00:02] Prevents h4.} 41. Bb5 {[%emt 0:00:02]} Rb8 {[%emt 0:00:05]} 42. Ke3 {[%emt 0:00:01]} (42. h4 {simplifies} Rxd7 43. Rxd7 Nd8 44. Ba6) 42... g5 {[%emt 0:00:02]} 43. R1d2 {[%emt 0:00:03]} Kg7 {[%emt 0:00:03]} 44. fxg5 {[%emt 0:00:02]} fxg5 {[%emt 0:00:01]} 45. Ra7 {[%emt 0:00:02] Hoping for Rf2.} Rxd2 {[%emt 0:00:01]} 46. Kxd2 {[%emt 0:00:01][%mdl 4096] Endgame KRB-KRN} Rd8+ {[%emt 0:00:01]} 47. Ke3 {[%emt 0:00:01]} Kf6 {[%emt 0:00:00]} 48. Rb7 {[%emt 0:00:02]} (48. c5 $11 bxc5 49. Rxa5) 48... Rd6 {[%emt 0:00:02]} (48... Ne5 $1 $15 49. Rxb6 Rd3+ 50. Ke4 Rxh3) 49. Rb8 {[%emt 0:00:04]} Ne5 {[%emt 0:00:01]} 50. Rf8+ {[%emt 0:00:02]} Ke7 {[%emt 0:00:01]} 51. Re8+ {[%emt 0:00:01]} Kf7 {[%emt 0:00:01]} 52. Rb8 {[%emt 0:00:02]} Ng6 {[%emt 0:00:03]} 53. Ke4 {[%emt 0:00:03]} Kf6 $1 {[%emt 0:00:05]} 54. Rb7 {[%emt 0:00:02] Strongly threatening Be8.} Ne7 {[%emt 0:00:06]} (54... Nf4 $11 55. Rb8 Nxh3 56. Rf8+ Ke7 57. Re8+ Kf6 58. Rf8+ Kg7) 55. Rc7 {[%emt 0:00:03]} (55. h4 $16 {And now hxg5+ would win.} Ng6 56. hxg5+ (56. h5 Ne5 $11) 56... Kxg5 57. Be8) 55... Ng6 $2 {[%emt 0:00:03]} (55... Rd8 $11 {and Black is okay.}) 56. Be8 $1 $18 {[%emt 0:00:02][%csl Ge8][%cal Rc7f7]} Ne7 {[%emt 0:00:01]} 57. Rb7 $2 {[%emt 0:00:01]} (57. h4 $1 $16 {[%cal Rh4g5] Black must now prevent hxg5+.} gxh4 58. g5+ Kxg5 59. Rxe7) 57... e5 {[%emt 0:00:02]} (57... Rd8 $11 58. Bh5 Rd6) 58. Bb5 {[%emt 0:00:02] White is more active.} (58. Ke3 $16) 58... Rd4+ {[%emt 0:00:00]} ({Better is} 58... Ng6 $1 $11) 59. Ke3 $14 {[%emt 0:00:02]} Rd6 {[%emt 0:00:01]} 60. Ke4 {[%emt 0:00:03]} (60. Ra7 $14) 60... Rd4+ $11 {[%emt 0:00:01]} 61. Ke3 {[%emt 0:00:01]} (61. Kf3 $11 Rd6 62. Ke3) 61... Rd6 $14 {[%emt 0:00:00]} 62. Be8 {[%emt 0:00:02]} Ke6 {[%emt 0:00:04]} 63. Bb5 {[%emt 0:00:03]} ({White should play} 63. Rb8 $14) 63... Ng6 $2 {[%emt 0:00:05][%mdl 8192] [#]} (63... Kf6 $11) 64. Rh7 $2 {[%emt 0:00:03]} ({Only move:} 64. c5 $1 $18 {Bc4+ would kill now.} Rd4 65. Bc4+ (65. cxb6 Rb4 $18) 65... Rxc4 66. Rxb6+ Kd7 67. bxc4) 64... Kf6 $11 {[%emt 0:00:02]} 65. Ke4 {[%emt 0:00:03]} Rd4+ {[%emt 0:00:01]} 66. Ke3 {[%emt 0:00:00]} Nf4 {[%emt 0:00:01]} 67. Rh6+ {[%emt 0:00:01]} Ke7 $1 {[%emt 0:00:04]} 68. Rxb6 {[%emt 0:00:01]} Nxh3 {[%emt 0:00:01]} 69. c5 {[%emt 0:00:03]} Rb4 $2 {[%emt 0:00:01][%mdl 8192] A mistake that costs the game.} (69... Nf4 $1 $11 70. Rb7+ Kd8) 70. Rb7+ $18 {[%emt 0:00:02]} Kd8 {[%emt 0:00:03][%cal Oh3f4] [#]} 71. c6 $1 {[%emt 0:00:02] White wants to mate with Rd7+.} Nf4 $2 {[%emt 0:00:03]} (71... Kc8 $18 72. Bf1 Nf4) 72. Rd7+ {[%emt 0:00:02] White mates.} Ke8 {[%emt 0:00:02]} 73. c7 {[%emt 0:00:01][%cal Rc7c8]} Rxb5 {[%emt 0:00:04]} 74. c8=Q# {Weighted Error Value: White=0.19 (very precise) /Black=0.23 (precise)} 1-0

[Event "4th Tata Steel India Blitz Women 2022"]
[Site "Kolkota"]
[Date "2022.12.04"]
[Round "11.5"]
[White "Ushenina, Anna"]
[Black "Koneru, Humpy"]
[Result "1/2-1/2"]
[ECO "D35"]
[WhiteElo "2454"]
[BlackElo "2574"]
[Annotator "TA"]
[PlyCount "62"]
[EventDate "2022.11.29"]
[EventType "tourn"]
[EventCountry "IND"]
[SourceTitle "playchess.com"]
[Source "ChessBase"]
[SourceQuality "1"]
[TimeControl "180+2"]

{[%evp 11,62,6,20,9,37,29,25,12,12,-35,-29,-27,-27,-69,-71,-70,-71,-58,-64,-54,-70,-95,-67,-160,-177,-174,-173,-160,37,-78,37,37,36,64,70,40,302,302,301,270,270,271,507,0,0,0,0,0,0,0,0,0,0]} 1. d4 {[%emt 0:00:02]} Nf6 {[%emt 0:00:01]} 2. c4 {[%emt 0:00:02]} e6 {[%emt 0:00:02]} 3. Nf3 {[%emt 0:00:02]} d5 {[%emt 0:00:05]} 4. Nc3 {[%emt 0:00:01]} Nbd7 {[%emt 0:00:12]} 5. cxd5 {[%emt 0:00:05]} exd5 {[%emt 0:00:03]} 6. Bf4 {[%emt 0:00:02]} Bb4 {[%emt 0:00:17]} 7. Qc2 {[%emt 0:00:04] D35: Queen's Gambit Declined: Exchange Variation.} O-O {[%emt 0:00:10]} 8. e3 {[%emt 0:00:02]} c5 {[%emt 0:00:09]} 9. Bd3 {[%emt 0:00:16] White has an edge.} c4 {[%emt 0:00:10]} 10. Bf5 {[%emt 0:00:12] [#]} (10. Be2 $11 {was preferrable.}) 10... g6 $146 {[%emt 0:00:37][%cal Bg7g6,Bg6g5][%mdl 32]} ({Predecessor:} 10... Nb6 11. O-O Bxf5 12. Qxf5 Bxc3 13. bxc3 Ne4 14. Rfc1 Qd7 15. Qh5 Na4 16. Ng5 Nf6 {1-0 (74) Leenhouts,K (2424)-Fawzy,A (2478) Chess.com INT 2019}) 11. Bh3 {[%emt 0:00:03]} Ne4 {[%emt 0:00:15]} 12. Bh6 {[%emt 0:00:21] Inhibits g5.} Re8 {[%emt 0:00:06]} 13. O-O {[%emt 0:00:03]} Bxc3 {[%emt 0:00:06]} 14. bxc3 {[%emt 0:00:01]} g5 $1 {[%emt 0:00:09] [#] Strongly threatening ...Qf6.} 15. Bxd7 $1 {[%emt 0:00:18]} Bxd7 {[%emt 0:00:02]} 16. Ne5 {[%emt 0:00:03]} Bf5 {[%emt 0:00:26] Hoping for ...Qf6.} (16... f6 {simplifies} 17. Nxd7 Qxd7 18. f3 Nd6) 17. f3 {[%emt 0:00:02] [#]} ({White should try} 17. Qc1 $1 $15 f6 18. f3) 17... Ng3 $1 $17 {[%emt 0:00:17][%mdl 512]} 18. e4 {[%emt 0:00:01]} Nxf1 {[%emt 0:00:08]} 19. Rxf1 {[%emt 0:00:08]} Bg6 {[%emt 0:00:11]} (19... Qf6 $1 $17 {And now ...Be6 would win.} 20. Bf8 Bc8) 20. Qd2 {[%emt 0:00:07]} (20. Qc1 $14 {stays ahead.}) 20... f6 {[%emt 0:00:02]} (20... dxe4 $17 {White must now prevent ...Rxe5.} 21. f4 f6 22. Nxc4 Rc8) 21. Ng4 $14 {[%emt 0:00:08] aiming for e5.} Bh5 {[%emt 0:00:04] Threatens to win with ...Bxg4.} ({Less strong is} 21... dxe4 22. fxe4 Re6 23. e5 fxe5 24. Bxg5 $16) 22. e5 {[%emt 0:00:02]} Bxg4 {[%emt 0:00:05]} 23. fxg4 {[%emt 0:00:01]} fxe5 {[%emt 0:00:02][%mdl 8192]} ({Black should play} 23... Re6 $1 $14) 24. Bxg5 $18 {[%emt 0:00:07]} Qd7 {[%emt 0:00:02]} 25. Bf6 {[%emt 0:00:09] White threatens Qg5+ and mate.} Qxg4 {[%emt 0:00:01]} 26. Rf3 {[%emt 0:00:03]} Qe4 $2 {[%emt 0:00:03]} (26... Re6 {was called for.} 27. dxe5 Qe4 28. Rg3+ Kf7) 27. Qh6 $2 {[%emt 0:00:08]} (27. dxe5 a5 28. h3 Ra6 29. Rg3+ Kf7) (27. h3 $18) 27... Qb1+ $1 $11 {[%emt 0:00:03] The position is equal.} (27... Qg6 $2 28. Rg3 $18) 28. Kf2 {[%emt 0:00:03][%csl Gf6][%cal Rh6g7]} (28. Rf1 $5 Qg6 $8 29. Qh3 $11) 28... Qc2+ {[%emt 0:00:01]} (28... Qxa2+ 29. Kg3) (28... Qg6 $2 29. Rg3 Kf7 30. Rxg6 hxg6 31. dxe5 $18) 29. Kg1 {[%emt 0:00:03][%csl Gf6][%cal Rh6g7]} Qb1+ {[%emt 0:00:01]} (29... Qxa2 $2 30. Qg7#) (29... Qg6 $2 30. Rg3 $18) 30. Kf2 {[%emt 0:00:05][%csl Gf6][%cal Rh6g7] Chess con chili.} (30. Rf1 $5 Qg6 $8 31. Qh3 $11) 30... Qc2+ {[%emt 0:00:01]} (30... Qxa2+ {leads to mate.} 31. Kg3) (30... Qg6 $2 31. Rg3 Kf7 32. Rxg6 hxg6 33. dxe5 $18) 31. Kg1 {[%emt 0:00:05][%csl Gf6][%cal Rh6g7]} Qb1+ {[%emt 0:00:01] Quite a comeback for White.   Weighted Error Value: White=0.40/Black=0.38} (31... Qxa2 $2 32. Qg7#) (31... Qg6 $2 32. Rg3 $18) 1/2-1/2

[Event "4th Tata Steel India Blitz Women 2022"]
[Site "Kolkota"]
[Date "2022.12.04"]
[Round "12.1"]
[White "Kulkarni Bhakti"]
[Black "Vaishali, Rameshbabu"]
[Result "0-1"]
[ECO "D00"]
[WhiteElo "2359"]
[BlackElo "2454"]
[Annotator "TA"]
[PlyCount "55"]
[EventDate "2022.11.29"]
[EventType "tourn"]
[EventCountry "IND"]
[SourceTitle "playchess.com"]
[Source "ChessBase"]
[SourceQuality "1"]
[TimeControl "180+2"]

{[%evp 9,55,0,0,-6,0,0,0,-6,-3,-2,0,0,-5,-20,0,-10,0,-14,41,33,68,64,85,71,79,78,82,60,66,17,17,14,22,0,0,-76,-59,-65,-73,-116,-84,-116,-9,-189,-195,-233,-228,-1158]} 1. d4 {[%emt 0:00:01]} Nf6 {[%emt 0:00:03]} 2. Nf3 {[%emt 0:00:02]} g6 {[%emt 0:00:04]} 3. Nc3 {[%emt 0:00:02]} d5 {[%emt 0:00:02]} 4. Bf4 {[%emt 0:00:02]} Bg7 {[%emt 0:00:01]} 5. Nb5 {[%emt 0:00:01]} Na6 {[%emt 0:00:03]} 6. e3 {[%emt 0:00:02] D00: 1 d4 d5: Unusual lines.} O-O {[%emt 0:00:28] The main line 6...0-0 scores better than 6...c6.} 7. h3 {[%emt 0:00:01][%cal Bh2h3,Bh3h4][%mdl 32]} Ne4 {[%emt 0:00:02]} 8. Nd2 {[%emt 0:00:03] The position is equal.} Nxd2 {[%emt 0:00:09]} 9. Qxd2 {[%emt 0:00:01]} c6 {[%emt 0:00:02]} 10. Nc3 {[%emt 0:00:03]} Nc7 {[%emt 0:00:07]} 11. Bd3 {[%emt 0:00:14]} f6 {[%emt 0:00:46]} 12. h4 {[%emt 0:01:21]} e5 {[%emt 0:00:02] [#] Against h5} 13. Bg3 $146 {[%emt 0:00:02]} ({Predecessor:} 13. dxe5 fxe5 14. Bg5 Qd6 15. h5 Bf5 16. hxg6 hxg6 17. O-O-O Bxd3 18. cxd3 Ne6 19. Bh4 {1-0 (46) Vantika,A (2381)-Martin Carmona,G (2362) Chess.com INT 2021}) 13... Ne6 {[%emt 0:00:42]} (13... e4 $11 14. Be2 h5) 14. h5 $14 {[%emt 0:00:26]} e4 {[%emt 0:00:02]} 15. Be2 {[%emt 0:00:21]} a5 {[%emt 0:00:16]} 16. hxg6 {[%emt 0:00:20]} hxg6 {[%emt 0:00:02]} 17. f3 {[%emt 0:00:02]} f5 {[%emt 0:00:10]} 18. fxe4 {[%emt 0:00:07]} (18. O-O-O {seems wilder.} b5 19. Be5 Rf7 20. f4) 18... fxe4 {[%emt 0:00:07]} 19. Bh4 {[%emt 0:00:05]} (19. O-O-O $14 {should be considered.}) 19... Qd6 $11 {[%emt 0:00:11]} 20. O-O-O {[%emt 0:00:03]} b5 {[%emt 0:00:02][%cal Bb7b5,Bb5b4][%mdl 32]} 21. Rdf1 {[%emt 0:00:07]} Bd7 {[%emt 0:00:02]} 22. Qe1 {[%emt 0:00:02]} (22. Rxf8+ $11 {keeps the balance.} Rxf8 23. Bg4) 22... b4 $17 {[%emt 0:00:08] [#] ...Rxf1 is the strong threat.} 23. Nd1 {[%emt 0:00:10]} c5 {[%emt 0:00:01]} 24. Bg3 {[%emt 0:00:05]} Qe7 {[%emt 0:00:09] Threatens to win with ...Rxf1.} 25. Be5 {[%emt 0:00:05]} cxd4 {[%emt 0:00:02]} ({Black should try} 25... Rxf1 $17 26. Qxf1 cxd4 27. Bxg7 Kxg7) 26. exd4 $2 {[%emt 0:00:03] [#]} (26. Rxf8+ $11 {and White has nothing to worry.} Rxf8 27. Qg3) 26... Qg5+ $19 {[%emt 0:00:03]} 27. Kb1 {[%emt 0:00:01]} Nxd4 {[%emt 0:00:03] Dancing on a razor blade. Active counter play!} 28. Nf2 $2 {[%emt 0:00:03] Weighted Error Value: White=0.30/Black=0.16 (very precise)} (28. Rxf8+ Rxf8 29. Bxg7 Kxg7 30. Ba6) 0-1